[Event "Titled Tuesday Blitz March 01 Late 2022"]
[White "Martins, Carlos"]
[Black "Kosakowski, Jakub"]
[WhiteFideId "2101688"]
[BlackFideId "1185080"]
[WhiteElo "2183"]
[BlackElo "2476"]
[Result "0-1"]
[Round "02"]
[TimeControl "180+1"]
[Date "2022.03.02"]
[WhiteClock "0:00:01"]
[BlackClock "0:00:13"]

1. e4 {[%clk 0:03:00]}  d5 {[%clk 0:02:57]} 2. exd5 {[%clk 0:03:00]}  Qxd5 {[%clk 0:02:58]} 3. Nc3 {[%clk 0:03:00]}  Qd8 {[%clk 0:02:59]} 4. d4 {[%clk 0:02:59]}  c6 {[%clk 0:02:55]} 5. Bc4 {[%clk 0:02:59]}  Bf5 {[%clk 0:02:55]} 6. Nf3 {[%clk 0:02:57]}  e6 {[%clk 0:02:55]} 7. Be3 {[%clk 0:02:55]}  Nf6 {[%clk 0:02:54]} 8. Ne5 {[%clk 0:02:52]}  Nbd7 {[%clk 0:02:52]} 9. f4 {[%clk 0:02:50]}  Be7 {[%clk 0:02:49]} 10. Qe2 {[%clk 0:02:48]}  Nd5 {[%clk 0:02:47]} 11. Bd2 {[%clk 0:02:41]}  Nxe5 {[%clk 0:02:42]} 12. fxe5 {[%clk 0:02:37]}  Bh4+ {[%clk 0:02:38]} 13. g3 {[%clk 0:02:35]}  Bg5 {[%clk 0:02:39]} 14. Bxd5 {[%clk 0:02:16]}  exd5 {[%clk 0:02:33]} 15. O-O-O {[%clk 0:02:12]}  O-O {[%clk 0:02:31]} 16. h4 {[%clk 0:02:06]}  Bxd2+ {[%clk 0:02:31]} 17. Rxd2 {[%clk 0:02:03]}  b5 {[%clk 0:02:29]} 18. g4 {[%clk 0:02:02]}  Be6 {[%clk 0:02:29]} 19. g5 {[%clk 0:01:57]}  a5 {[%clk 0:02:29]} 20. Kb1 {[%clk 0:01:57]}  a4 {[%clk 0:02:29]} 21. a3 {[%clk 0:01:53]}  b4 {[%clk 0:02:04]} 22. axb4 {[%clk 0:01:53]}  a3 {[%clk 0:02:05]} 23. b3 {[%clk 0:01:51]}  a2+ {[%clk 0:02:03]} 24. Nxa2 {[%clk 0:01:48]}  Qb6 {[%clk 0:02:02]} 25. c3 {[%clk 0:01:47]}  Ra3 {[%clk 0:02:01]} 26. Rf1 {[%clk 0:01:43]}  Rxb3+ {[%clk 0:01:58]} 27. Rb2 {[%clk 0:01:34]}  Ra3 {[%clk 0:01:58]} 28. h5 {[%clk 0:01:31]}  Rfa8 {[%clk 0:01:57]} 29. Rf2 {[%clk 0:01:22]}  Qd8 {[%clk 0:01:50]} 30. Qe3 {[%clk 0:01:10]}  Qd7 {[%clk 0:01:49]} 31. Qf4 {[%clk 0:01:08]}  g6 {[%clk 0:01:46]} 32. hxg6 {[%clk 0:00:58]}  fxg6 {[%clk 0:01:40]} 33. Qf6 {[%clk 0:00:49]}  Bf5+ {[%clk 0:01:38]} 34. Kc1 {[%clk 0:00:38]}  Rf8 {[%clk 0:01:22]} 35. Qd6 {[%clk 0:00:36]}  Qxd6 {[%clk 0:01:06]} 36. exd6 {[%clk 0:00:37]}  Rd8 {[%clk 0:01:06]} 37. b5 {[%clk 0:00:36]}  cxb5 {[%clk 0:01:06]} 38. Kd2 {[%clk 0:00:33]}  Rxd6 {[%clk 0:01:05]} 39. Nb4 {[%clk 0:00:33]}  Ra8 {[%clk 0:01:02]} 40. Re2 {[%clk 0:00:32]}  Be4 {[%clk 0:01:01]} 41. Nd3 {[%clk 0:00:30]}  Rf8 {[%clk 0:00:58]} 42. Rxb5 {[%clk 0:00:27]}  Ra6 {[%clk 0:00:52]} 43. Ne5 {[%clk 0:00:20]}  Ra2+ {[%clk 0:00:36]} 44. Ke3 {[%clk 0:00:20]}  Ra3 {[%clk 0:00:36]} 45. Kd2 {[%clk 0:00:19]}  Rc8 {[%clk 0:00:35]} 46. Nd7 {[%clk 0:00:12]}  Ra2+ {[%clk 0:00:26]} 47. Ke1 {[%clk 0:00:10]}  Ra1+ {[%clk 0:00:17]} 48. Kd2 {[%clk 0:00:09]}  Kf7 {[%clk 0:00:17]} 49. Rb7 {[%clk 0:00:06]}  Ra2+ {[%clk 0:00:14]} 50. Ke1 {[%clk 0:00:05]}  Ra1+ {[%clk 0:00:14]} 51. Kd2 {[%clk 0:00:05]}  Ke6 {[%clk 0:00:13]} 52. Nc5+ {[%clk 0:00:01]}  Kf5 {[%clk 0:00:13]} 0-1


[Site "https://www.chess.com"]

[Event "Titled Tuesday Blitz March 01 Late 2022"]
[White "Mogranzini, Roberto"]
[Black "Lima, Kleyton Alcantara"]
[WhiteFideId "810894"]
[BlackFideId "22718397"]
[WhiteElo "2469"]
[BlackElo "1951"]
[Result "1-0"]
[Round "02"]
[TimeControl "180+1"]
[Date "2022.03.02"]
[WhiteClock "0:01:47"]
[BlackClock "0:01:12"]

1. e4 {[%clk 0:03:00]}  c5 {[%clk 0:02:59]} 2. Nf3 {[%clk 0:03:00]}  d6 {[%clk 0:02:59]} 3. Nc3 {[%clk 0:03:01]}  a6 {[%clk 0:02:58]} 4. a4 {[%clk 0:03:01]}  Nf6 {[%clk 0:02:59]} 5. e5 {[%clk 0:03:01]}  dxe5 {[%clk 0:02:59]} 6. Nxe5 {[%clk 0:03:02]}  Nbd7 {[%clk 0:02:59]} 7. Nc4 {[%clk 0:03:03]}  e6 {[%clk 0:02:57]} 8. g3 {[%clk 0:03:03]}  Be7 {[%clk 0:02:55]} 9. a5 {[%clk 0:03:00]}  b5 {[%clk 0:02:53]} 10. axb6 {[%clk 0:03:00]}  Nxb6 {[%clk 0:02:53]} 11. Na5 {[%clk 0:02:59]}  Qc7 {[%clk 0:02:51]} 12. Bg2 {[%clk 0:02:59]}  Rb8 {[%clk 0:02:51]} 13. O-O {[%clk 0:02:55]}  Nbd5 {[%clk 0:02:48]} 14. b3 {[%clk 0:02:53]}  O-O {[%clk 0:02:47]} 15. Bb2 {[%clk 0:02:51]}  Bb7 {[%clk 0:02:47]} 16. Nxb7 {[%clk 0:02:51]}  Qxb7 {[%clk 0:02:45]} 17. Qe2 {[%clk 0:02:50]}  Qc8 {[%clk 0:02:30]} 18. Qxa6 {[%clk 0:02:32]}  Qc7 {[%clk 0:02:22]} 19. Qe2 {[%clk 0:02:28]}  Nb4 {[%clk 0:02:21]} 20. d3 {[%clk 0:02:26]}  Nfd5 {[%clk 0:02:21]} 21. Ne4 {[%clk 0:02:21]}  Ra8 {[%clk 0:02:17]} 22. h4 {[%clk 0:02:12]}  h6 {[%clk 0:02:06]} 23. Rxa8 {[%clk 0:02:09]}  Rxa8 {[%clk 0:02:06]} 24. c4 {[%clk 0:02:09]}  Nb6 {[%clk 0:01:56]} 25. Qg4 {[%clk 0:02:05]}  Bf8 {[%clk 0:01:53]} 26. Nf6+ {[%clk 0:02:05]}  Kh8 {[%clk 0:01:54]} 27. Bxa8 {[%clk 0:02:04]}  Nxa8 {[%clk 0:01:52]} 28. Qe4 {[%clk 0:02:03]}  gxf6 {[%clk 0:01:46]} 29. Bxf6+ {[%clk 0:02:02]}  Kg8 {[%clk 0:01:45]} 30. Qxa8 {[%clk 0:02:00]}  Nxd3 {[%clk 0:01:44]} 31. Rd1 {[%clk 0:01:57]}  Qd6 {[%clk 0:01:24]} 32. Qf3 {[%clk 0:01:49]}  Ne5 {[%clk 0:01:16]} 33. Qe2 {[%clk 0:01:47]}  Qc6 {[%clk 0:01:12]} 34. Bxe5 {[%clk 0:01:47]} 1-0


[Site "https://www.chess.com"]

[Event "Titled Tuesday Blitz March 01 Late 2022"]
[White "Muradli, Mahammad"]
[Black "Hua, Lefong"]
[WhiteFideId "13409301"]
[BlackFideId "2602253"]
[WhiteElo "2645"]
[BlackElo "2580"]
[Result "1-0"]
[Round "02"]
[TimeControl "180+1"]
[Date "2022.03.01"]
[WhiteClock "0:00:10"]
[BlackClock "0:00:08"]

1. Nf3 {[%clk 0:03:00]}  Nf6 {[%clk 0:02:59]} 2. g3 {[%clk 0:03:01]}  g6 {[%clk 0:03:00]} 3. b3 {[%clk 0:03:01]}  Bg7 {[%clk 0:03:01]} 4. Bb2 {[%clk 0:03:02]}  O-O {[%clk 0:03:01]} 5. Bg2 {[%clk 0:03:02]}  c5 {[%clk 0:03:02]} 6. c4 {[%clk 0:03:02]}  Nc6 {[%clk 0:03:02]} 7. O-O {[%clk 0:03:01]}  d6 {[%clk 0:03:03]} 8. Nc3 {[%clk 0:03:00]}  Rb8 {[%clk 0:03:01]} 9. d4 {[%clk 0:03:01]}  a6 {[%clk 0:03:01]} 10. dxc5 {[%clk 0:03:00]}  dxc5 {[%clk 0:03:01]} 11. Na4 {[%clk 0:02:49]}  b6 {[%clk 0:02:50]} 12. Ne5 {[%clk 0:02:42]}  Na5 {[%clk 0:02:27]} 13. Bc3 {[%clk 0:02:36]}  Nd7 {[%clk 0:02:07]} 14. Nxd7 {[%clk 0:01:42]}  Bxd7 {[%clk 0:01:57]} 15. Bxg7 {[%clk 0:01:34]}  Kxg7 {[%clk 0:01:55]} 16. Nc3 {[%clk 0:01:35]}  Bc6 {[%clk 0:01:47]} 17. Qc2 {[%clk 0:01:32]}  Bxg2 {[%clk 0:01:45]} 18. Kxg2 {[%clk 0:01:33]}  e6 {[%clk 0:01:43]} 19. Rad1 {[%clk 0:01:34]}  Qe7 {[%clk 0:01:31]} 20. Ne4 {[%clk 0:01:26]}  Rfd8 {[%clk 0:01:24]} 21. Qc3+ {[%clk 0:01:23]}  f6 {[%clk 0:01:23]} 22. g4 {[%clk 0:01:11]}  e5 {[%clk 0:00:59]} 23. Qg3 {[%clk 0:01:11]}  Nc6 {[%clk 0:00:55]} 24. e3 {[%clk 0:01:06]}  Rxd1 {[%clk 0:00:53]} 25. Rxd1 {[%clk 0:01:05]}  Rd8 {[%clk 0:00:53]} 26. Rd5 {[%clk 0:00:41]}  Rxd5 {[%clk 0:00:41]} 27. cxd5 {[%clk 0:00:42]}  Nb4 {[%clk 0:00:40]} 28. d6 {[%clk 0:00:42]}  Qe6 {[%clk 0:00:38]} 29. g5 {[%clk 0:00:42]}  f5 {[%clk 0:00:36]} 30. Nf6 {[%clk 0:00:41]}  Kf7 {[%clk 0:00:28]} 31. d7 {[%clk 0:00:37]}  Nc6 {[%clk 0:00:28]} 32. Qf3 {[%clk 0:00:34]}  e4 {[%clk 0:00:25]} 33. Qf4 {[%clk 0:00:33]}  Nd8 {[%clk 0:00:21]} 34. Qc7 {[%clk 0:00:33]}  Ke7 {[%clk 0:00:19]} 35. h4 {[%clk 0:00:16]}  h5 {[%clk 0:00:13]} 36. Qb8 {[%clk 0:00:11]}  Qd6 {[%clk 0:00:09]} 37. Qc8 {[%clk 0:00:07]}  Qe6 {[%clk 0:00:09]} 38. Qxa6 {[%clk 0:00:07]}  f4 {[%clk 0:00:07]} 39. exf4 {[%clk 0:00:08]}  e3 {[%clk 0:00:07]} 40. Qe2 {[%clk 0:00:07]}  exf2 {[%clk 0:00:07]} 41. Kxf2 {[%clk 0:00:06]}  Qxe2+ {[%clk 0:00:06]} 42. Kxe2 {[%clk 0:00:07]}  Ne6 {[%clk 0:00:07]} 43. Ke3 {[%clk 0:00:07]}  Ng7 {[%clk 0:00:08]} 44. Ke4 {[%clk 0:00:07]}  Nf5 {[%clk 0:00:08]} 45. Nxh5 {[%clk 0:00:07]}  Nd6+ {[%clk 0:00:08]} 46. Kd5 {[%clk 0:00:08]}  gxh5 {[%clk 0:00:09]} 47. d8=Q+ {[%clk 0:00:08]}  Kxd8 {[%clk 0:00:08]} 48. Kxd6 {[%clk 0:00:09]}  c4 {[%clk 0:00:08]} 49. bxc4 {[%clk 0:00:10]} 1-0


[Site "https://www.chess.com"]

[Event "Titled Tuesday Blitz March 01 Late 2022"]
[White "Nasuta, Grzegorz"]
[Black "Medeiros Jr, Francisco De Assis"]
[WhiteFideId "1141686"]
[BlackFideId "2114267"]
[WhiteElo "2396"]
[BlackElo "1998"]
[Result "1-0"]
[Round "02"]
[TimeControl "180+1"]
[Date "2022.03.02"]
[WhiteClock "0:00:18"]
[BlackClock "0:00:40"]

1. e4 {[%clk 0:02:19]}  c6 {[%clk 0:02:59]} 2. d4 {[%clk 0:02:18]}  d5 {[%clk 0:03:00]} 3. Nc3 {[%clk 0:02:19]}  dxe4 {[%clk 0:03:00]} 4. Nxe4 {[%clk 0:02:20]}  Nf6 {[%clk 0:03:01]} 5. Nxf6+ {[%clk 0:02:18]}  exf6 {[%clk 0:03:02]} 6. c3 {[%clk 0:02:18]}  Bd6 {[%clk 0:03:02]} 7. Bd3 {[%clk 0:02:17]}  O-O {[%clk 0:03:02]} 8. Qc2 {[%clk 0:02:17]}  Re8+ {[%clk 0:03:02]} 9. Ne2 {[%clk 0:02:18]}  h5 {[%clk 0:03:02]} 10. O-O {[%clk 0:02:18]}  Qc7 {[%clk 0:03:01]} 11. h3 {[%clk 0:02:12]}  h4 {[%clk 0:03:00]} 12. Bd2 {[%clk 0:02:09]}  Nd7 {[%clk 0:03:00]} 13. Rae1 {[%clk 0:02:10]}  Nf8 {[%clk 0:03:00]} 14. Kh1 {[%clk 0:02:08]}  Bd7 {[%clk 0:02:53]} 15. c4 {[%clk 0:02:06]}  Ne6 {[%clk 0:02:29]} 16. c5 {[%clk 0:01:56]}  Bf8 {[%clk 0:02:17]} 17. Bc4 {[%clk 0:01:55]}  g6 {[%clk 0:02:10]} 18. b4 {[%clk 0:01:54]}  Bg7 {[%clk 0:02:09]} 19. Bc3 {[%clk 0:01:51]}  f5 {[%clk 0:02:07]} 20. d5 {[%clk 0:01:51]}  cxd5 {[%clk 0:02:02]} 21. Bxd5 {[%clk 0:01:52]}  Bc6 {[%clk 0:01:54]} 22. Bxc6 {[%clk 0:01:48]}  Qxc6 {[%clk 0:01:52]} 23. Bxg7 {[%clk 0:01:48]}  Kxg7 {[%clk 0:01:53]} 24. Qc4 {[%clk 0:01:46]}  Rad8 {[%clk 0:01:47]} 25. Rc1 {[%clk 0:01:43]}  Ng5 {[%clk 0:01:45]} 26. b5 {[%clk 0:01:35]}  Qe4 {[%clk 0:01:37]} 27. Qxe4 {[%clk 0:01:35]}  Rxe4 {[%clk 0:01:38]} 28. Rc2 {[%clk 0:01:28]}  Rde8 {[%clk 0:01:24]} 29. Nc1 {[%clk 0:01:05]}  Ne6 {[%clk 0:01:12]} 30. c6 {[%clk 0:00:50]}  bxc6 {[%clk 0:01:12]} 31. bxc6 {[%clk 0:00:51]}  Nd4 {[%clk 0:01:06]} 32. Rc4 {[%clk 0:00:30]}  R4e6 {[%clk 0:00:44]} 33. Rxd4 {[%clk 0:00:30]}  Rxc6 {[%clk 0:00:44]} 34. Nb3 {[%clk 0:00:22]}  Re2 {[%clk 0:00:43]} 35. Ra4 {[%clk 0:00:22]}  Rcc2 {[%clk 0:00:42]} 36. Rxa7 {[%clk 0:00:17]}  Rxa2 {[%clk 0:00:42]} 37. Rxa2 {[%clk 0:00:17]}  Rxa2 {[%clk 0:00:43]} 38. Kg1 {[%clk 0:00:17]}  Kf6 {[%clk 0:00:43]} 39. Re1 {[%clk 0:00:17]}  Rb2 {[%clk 0:00:43]} 40. Nd4 {[%clk 0:00:17]}  Rd2 {[%clk 0:00:43]} 41. Nf3 {[%clk 0:00:17]}  Rc2 {[%clk 0:00:43]} 42. Nxh4 {[%clk 0:00:18]}  g5 {[%clk 0:00:42]} 43. Nf3 {[%clk 0:00:19]}  Rb2 {[%clk 0:00:41]} 44. Ra1 {[%clk 0:00:17]}  Rb5 {[%clk 0:00:41]} 45. Ra6+ {[%clk 0:00:17]}  Kg7 {[%clk 0:00:40]} 46. Nxg5 {[%clk 0:00:18]} 1-0


[Site "https://www.chess.com"]

[Event "Titled Tuesday Blitz March 01 Late 2022"]
[White "Nikologorsky, Matfei"]
[Black "Song, Michael"]
[WhiteFideId "24102474"]
[BlackFideId "2613190"]
[WhiteElo "2231"]
[BlackElo "2274"]
[Result "0-1"]
[Round "02"]
[TimeControl "180+1"]
[Date "2022.03.02"]
[WhiteClock "0:00:07"]
[BlackClock "0:01:12"]

1. e4 {[%clk 0:02:58]}  e5 {[%clk 0:02:58]} 2. Nf3 {[%clk 0:02:58]}  Nc6 {[%clk 0:02:58]} 3. Bb5 {[%clk 0:02:57]}  Nf6 {[%clk 0:02:58]} 4. O-O {[%clk 0:02:57]}  Nxe4 {[%clk 0:02:58]} 5. d4 {[%clk 0:02:55]}  Nd6 {[%clk 0:02:58]} 6. dxe5 {[%clk 0:02:55]}  Nxb5 {[%clk 0:02:58]} 7. a4 {[%clk 0:02:55]}  d6 {[%clk 0:02:59]} 8. e6 {[%clk 0:02:47]}  fxe6 {[%clk 0:02:58]} 9. axb5 {[%clk 0:02:46]}  Nb4 {[%clk 0:02:58]} 10. Ra4 {[%clk 0:02:28]}  c5 {[%clk 0:02:54]} 11. bxc6 {[%clk 0:02:25]}  Nxc6 {[%clk 0:02:54]} 12. Nc3 {[%clk 0:02:13]}  Be7 {[%clk 0:02:52]} 13. Re1 {[%clk 0:02:02]}  O-O {[%clk 0:02:50]} 14. Ne4 {[%clk 0:01:56]}  h6 {[%clk 0:02:44]} 15. Ng3 {[%clk 0:01:54]}  e5 {[%clk 0:02:40]} 16. Qd5+ {[%clk 0:01:47]}  Kh8 {[%clk 0:02:39]} 17. Rd1 {[%clk 0:01:40]}  Bd7 {[%clk 0:02:29]} 18. Re4 {[%clk 0:01:18]}  Qc8 {[%clk 0:02:28]} 19. Ree1 {[%clk 0:01:04]}  Bg4 {[%clk 0:02:23]} 20. c3 {[%clk 0:01:00]}  Bxf3 {[%clk 0:02:19]} 21. gxf3 {[%clk 0:01:01]}  Qh3 {[%clk 0:02:18]} 22. b4 {[%clk 0:00:55]}  a6 {[%clk 0:02:10]} 23. Bb2 {[%clk 0:00:48]}  Rf4 {[%clk 0:02:06]} 24. Re4 {[%clk 0:00:40]}  Rxf3 {[%clk 0:02:01]} 25. Rh4 {[%clk 0:00:31]}  Rxg3+ {[%clk 0:01:56]} 26. hxg3 {[%clk 0:00:28]}  Bxh4 {[%clk 0:01:57]} 27. gxh4 {[%clk 0:00:28]}  Rf8 {[%clk 0:01:52]} 28. Rd3 {[%clk 0:00:26]}  Qxh4 {[%clk 0:01:47]} 29. Rg3 {[%clk 0:00:26]}  Qf4 {[%clk 0:01:41]} 30. Rg2 {[%clk 0:00:22]}  Rf6 {[%clk 0:01:39]} 31. b5 {[%clk 0:00:17]}  axb5 {[%clk 0:01:40]} 32. Qxb5 {[%clk 0:00:16]}  Rf7 {[%clk 0:01:24]} 33. Qf1 {[%clk 0:00:11]}  e4 {[%clk 0:01:22]} 34. Bc1 {[%clk 0:00:11]}  Qf5 {[%clk 0:01:20]} 35. Qc4 {[%clk 0:00:11]}  Ne5 {[%clk 0:01:19]} 36. Qa4 {[%clk 0:00:08]}  Nf3+ {[%clk 0:01:19]} 37. Kf1 {[%clk 0:00:09]}  Qh3 {[%clk 0:01:12]} 38. Qe8+ {[%clk 0:00:07]}  Kh7 {[%clk 0:01:12]} 39. Qxf7 {[%clk 0:00:07]}  Qh1+ {[%clk 0:01:12]} 40. Ke2 {[%clk 0:00:07]}  Qe1# {[%clk 0:01:12]} 0-1


[Site "https://www.chess.com"]

[Event "Titled Tuesday Blitz March 01 Late 2022"]
[White "Papasimakopoulos, Alexandros"]
[Black "Alfaro, William"]
[WhiteFideId "4244125"]
[BlackFideId "6100457"]
[WhiteElo "2340"]
[BlackElo "2066"]
[Result "1-0"]
[Round "02"]
[TimeControl "180+1"]
[Date "2022.03.02"]
[WhiteClock "0:01:17"]
[BlackClock "0:01:22"]

1. d4 {[%clk 0:02:34]}  Nf6 {[%clk 0:02:59]} 2. c4 {[%clk 0:02:34]}  g6 {[%clk 0:02:59]} 3. Nc3 {[%clk 0:02:34]}  Bg7 {[%clk 0:02:59]} 4. e4 {[%clk 0:02:35]}  d6 {[%clk 0:03:00]} 5. f3 {[%clk 0:02:35]}  O-O {[%clk 0:03:00]} 6. Nge2 {[%clk 0:02:35]}  c5 {[%clk 0:03:01]} 7. d5 {[%clk 0:02:35]}  e6 {[%clk 0:02:58]} 8. Ng3 {[%clk 0:02:36]}  exd5 {[%clk 0:02:58]} 9. cxd5 {[%clk 0:02:37]}  a6 {[%clk 0:02:57]} 10. a4 {[%clk 0:02:37]}  Nbd7 {[%clk 0:02:57]} 11. Be2 {[%clk 0:02:36]}  Rb8 {[%clk 0:02:55]} 12. O-O {[%clk 0:02:36]}  Ne5 {[%clk 0:02:23]} 13. Nh1 {[%clk 0:02:31]}  Nh5 {[%clk 0:02:19]} 14. f4 {[%clk 0:02:30]}  Nd7 {[%clk 0:02:16]} 15. Bxh5 {[%clk 0:02:30]}  gxh5 {[%clk 0:02:16]} 16. Qxh5 {[%clk 0:02:30]}  Nf6 {[%clk 0:02:16]} 17. Qd1 {[%clk 0:02:27]}  b5 {[%clk 0:02:16]} 18. axb5 {[%clk 0:02:27]}  axb5 {[%clk 0:02:16]} 19. Nf2 {[%clk 0:02:28]}  b4 {[%clk 0:02:16]} 20. Ne2 {[%clk 0:02:28]}  Re8 {[%clk 0:02:17]} 21. Ng3 {[%clk 0:02:27]}  c4 {[%clk 0:02:06]} 22. Re1 {[%clk 0:02:27]}  c3 {[%clk 0:02:04]} 23. bxc3 {[%clk 0:02:27]}  bxc3 {[%clk 0:02:05]} 24. Qd3 {[%clk 0:02:09]}  Nd7 {[%clk 0:02:02]} 25. Be3 {[%clk 0:02:08]}  Qc7 {[%clk 0:02:01]} 26. Ra7 {[%clk 0:02:04]}  Rb7 {[%clk 0:01:58]} 27. Ra3 {[%clk 0:01:40]}  Nc5 {[%clk 0:01:57]} 28. Qc4 {[%clk 0:01:37]}  Rb2 {[%clk 0:01:47]} 29. e5 {[%clk 0:01:36]}  dxe5 {[%clk 0:01:45]} 30. Bxc5 {[%clk 0:01:31]}  Bd7 {[%clk 0:01:42]} 31. Rxc3 {[%clk 0:01:27]}  exf4 {[%clk 0:01:42]} 32. Rxe8+ {[%clk 0:01:25]}  Bxe8 {[%clk 0:01:42]} 33. Nf5 {[%clk 0:01:21]}  Bxc3 {[%clk 0:01:37]} 34. Qxc3 {[%clk 0:01:22]}  Rb1+ {[%clk 0:01:37]} 35. Nd1 {[%clk 0:01:21]}  Rxd1+ {[%clk 0:01:33]} 36. Kf2 {[%clk 0:01:21]}  f6 {[%clk 0:01:32]} 37. d6 {[%clk 0:01:19]}  Qc6 {[%clk 0:01:25]} 38. Ne7+ {[%clk 0:01:19]}  Kf7 {[%clk 0:01:23]} 39. Nxc6 {[%clk 0:01:19]}  Bxc6 {[%clk 0:01:24]} 40. Bd4 {[%clk 0:01:18]}  Bd7 {[%clk 0:01:23]} 41. Bxf6 {[%clk 0:01:17]}  Rxd6 {[%clk 0:01:23]} 42. Be5 {[%clk 0:01:18]}  Rc6 {[%clk 0:01:21]} 43. Qb3+ {[%clk 0:01:17]}  Be6 {[%clk 0:01:22]} 44. Qb7+ {[%clk 0:01:17]}  Kg6 {[%clk 0:01:22]} 45. Qxc6 {[%clk 0:01:17]} 1-0


[Site "https://www.chess.com"]

[Event "Titled Tuesday Blitz March 01 Late 2022"]
[White "Peatman, Carter"]
[Black "Mortazavi, Ali"]
[WhiteFideId "2096480"]
[BlackFideId "401323"]
[WhiteElo "2289"]
[BlackElo "2339"]
[Result "0-1"]
[Round "02"]
[TimeControl "180+1"]
[Date "2022.03.02"]
[WhiteClock "0:00:04"]
[BlackClock "0:01:05"]

1. d4 {[%clk 0:02:59]}  Nf6 {[%clk 0:02:57]} 2. Nf3 {[%clk 0:02:56]}  g6 {[%clk 0:02:57]} 3. Bf4 {[%clk 0:02:55]}  Bg7 {[%clk 0:02:56]} 4. e3 {[%clk 0:02:56]}  d6 {[%clk 0:02:56]} 5. h3 {[%clk 0:02:57]}  O-O {[%clk 0:02:57]} 6. Be2 {[%clk 0:02:57]}  c5 {[%clk 0:02:57]} 7. c3 {[%clk 0:02:52]}  Be6 {[%clk 0:02:57]} 8. dxc5 {[%clk 0:02:47]}  dxc5 {[%clk 0:02:53]} 9. Nbd2 {[%clk 0:02:48]}  Qb6 {[%clk 0:02:47]} 10. Qc2 {[%clk 0:02:45]}  Nc6 {[%clk 0:02:42]} 11. Nc4 {[%clk 0:02:44]}  Bxc4 {[%clk 0:02:30]} 12. Bxc4 {[%clk 0:02:43]}  Nd7 {[%clk 0:02:27]} 13. Rd1 {[%clk 0:02:33]}  Nde5 {[%clk 0:02:27]} 14. Nxe5 {[%clk 0:02:33]}  Nxe5 {[%clk 0:02:27]} 15. Bxe5 {[%clk 0:02:28]}  Bxe5 {[%clk 0:02:27]} 16. O-O {[%clk 0:02:29]}  Kg7 {[%clk 0:02:25]} 17. Rd5 {[%clk 0:02:18]}  Bf6 {[%clk 0:02:14]} 18. Rfd1 {[%clk 0:02:17]}  Rac8 {[%clk 0:02:13]} 19. R1d3 {[%clk 0:02:08]}  Qc6 {[%clk 0:02:08]} 20. Qb3 {[%clk 0:01:43]}  a6 {[%clk 0:02:08]} 21. a4 {[%clk 0:01:42]}  Rb8 {[%clk 0:01:58]} 22. a5 {[%clk 0:01:38]}  Rfc8 {[%clk 0:01:48]} 23. g4 {[%clk 0:00:53]}  h6 {[%clk 0:01:36]} 24. Qa3 {[%clk 0:00:39]}  Rc7 {[%clk 0:01:26]} 25. f4 {[%clk 0:00:31]}  e6 {[%clk 0:01:14]} 26. Rd6 {[%clk 0:00:24]}  Qf3 {[%clk 0:01:14]} 27. Qb3 {[%clk 0:00:12]}  Qg3+ {[%clk 0:01:11]} 28. Kf1 {[%clk 0:00:06]}  Bh4 {[%clk 0:01:09]} 29. Rd2 {[%clk 0:00:03]}  Qf3+ {[%clk 0:01:06]} 30. Kg1 {[%clk 0:00:03]}  Qxe3+ {[%clk 0:01:07]} 31. Kh1 {[%clk 0:00:04]}  Qxh3+ {[%clk 0:01:05]} 0-1


[Site "https://www.chess.com"]

[Event "Titled Tuesday Blitz March 01 Late 2022"]
[White "Perez Torres, Nabi Isaias"]
[Black "Kaasen, Tor Fredrik"]
[WhiteFideId "5120373"]
[BlackFideId "1516647"]
[WhiteElo "1755"]
[BlackElo "2335"]
[Result "0-1"]
[Round "02"]
[TimeControl "180+1"]
[Date "2022.03.02"]
[WhiteClock "0:00:03"]
[BlackClock "0:01:27"]

1. d4 {[%clk 0:03:00]}  d5 {[%clk 0:02:59]} 2. c4 {[%clk 0:03:01]}  e6 {[%clk 0:02:59]} 3. Nc3 {[%clk 0:03:01]}  c5 {[%clk 0:03:00]} 4. e3 {[%clk 0:02:58]}  cxd4 {[%clk 0:02:59]} 5. exd4 {[%clk 0:02:58]}  Nf6 {[%clk 0:02:57]} 6. Nf3 {[%clk 0:02:58]}  Nc6 {[%clk 0:02:56]} 7. Be2 {[%clk 0:02:58]}  dxc4 {[%clk 0:02:53]} 8. Bxc4 {[%clk 0:02:59]}  Be7 {[%clk 0:02:54]} 9. O-O {[%clk 0:02:59]}  O-O {[%clk 0:02:54]} 10. Qe2 {[%clk 0:03:00]}  b6 {[%clk 0:02:51]} 11. Rd1 {[%clk 0:02:59]}  Bb7 {[%clk 0:02:48]} 12. a3 {[%clk 0:02:02]}  Rc8 {[%clk 0:02:45]} 13. Bg5 {[%clk 0:01:59]}  h6 {[%clk 0:02:44]} 14. Be3 {[%clk 0:01:47]}  Na5 {[%clk 0:02:42]} 15. Ba2 {[%clk 0:01:45]}  Nd5 {[%clk 0:02:42]} 16. Ne4 {[%clk 0:01:24]}  Nxe3 {[%clk 0:02:24]} 17. Qxe3 {[%clk 0:01:21]}  Nc4 {[%clk 0:02:23]} 18. Qe2 {[%clk 0:01:17]}  Nxb2 {[%clk 0:02:21]} 19. Rd2 {[%clk 0:00:46]}  Na4 {[%clk 0:02:20]} 20. Ne5 {[%clk 0:00:30]}  Bxe4 {[%clk 0:02:10]} 21. Qxe4 {[%clk 0:00:31]}  Nc3 {[%clk 0:02:11]} 22. Qd3 {[%clk 0:00:29]}  Nxa2 {[%clk 0:02:11]} 23. Rdxa2 {[%clk 0:00:29]}  Bf6 {[%clk 0:02:02]} 24. Nf3 {[%clk 0:00:28]}  Qd5 {[%clk 0:02:02]} 25. h3 {[%clk 0:00:27]}  Rc4 {[%clk 0:01:58]} 26. Rd2 {[%clk 0:00:26]}  Rfc8 {[%clk 0:01:59]} 27. Rad1 {[%clk 0:00:25]}  Rc3 {[%clk 0:01:59]} 28. Qa6 {[%clk 0:00:24]}  R8c7 {[%clk 0:01:53]} 29. a4 {[%clk 0:00:23]}  Ra3 {[%clk 0:01:46]} 30. Ne5 {[%clk 0:00:11]}  Qb3 {[%clk 0:01:35]} 31. Rd3 {[%clk 0:00:04]}  Qc2 {[%clk 0:01:33]} 32. Qb5 {[%clk 0:00:03]}  Qxa4 {[%clk 0:01:27]} 0-1


[Site "https://www.chess.com"]